Cogmind - Beta 15 @@@ ROGUE MODE // 2025.07.14 @ 12:49:01 Player: cingulata Result: Destroyed by G-47 Trooper with Particle Gun Performance ------------- Evolutions (0) 0 Regions Visited (1) 200 Robots Destroyed (8) 40 Value Destroyed (216) 216 Prototype IDs (0) 0 Alien Tech Used (0) 0 Bonus (0) 0 TOTAL SCORE: 456 Bonus ------- None Cogmind --------- Core Integrity 0/250 Matter 217/300 Energy 100/100 System Corruption 0% Temperature Cool (30) Movement Core (400) Ox7 Location -10/Materials Parts ------- > --- POWER (1) -------- (None) > --- PROPULSION (2) --- Aluminum Leg > --- UTILITY (2) ------ Large Storage Unit Seismic Detector > --- WEAPON (2) ------- Light Assault Rifle Light Assault Rifle > --- INVENTORY (15) --- Light Nuclear Core Light Treads Light Treads Light Treads Light Treads Light Treads Wheel ECM Suite Utility Shielding Grenade Launcher Hammer Peak State ------------ > --- POWER ------------ Light Ion Engine > --- PROPULSION ------- Aluminum Leg Aluminum Leg > --- UTILITY ---------- Medium Storage Unit Seismic Detector > --- WEAPON ----------- Light Assault Rifle Light Assault Rifle > --- INVENTORY -------- Light Ion Engine Light Treads Light Treads Light Treads Wheel Compact Wheel ECM Suite Light Armor Plating Small Laser Hammer [Rating: 8] Favorites ----------- Power Light Ion Engine Engine Light Ion Engine Propulsion Aluminum Leg Leg Aluminum Leg Wheel Compact Wheel Utility Seismic Detector Device Seismic Detector Storage Large Storage Unit Protection Light Armor Plating Weapon Light Assault Rifle Ballistic Gun Light Assault Rifle Impact Weapon Hammer Build | -11 -10 ------- Run | Yrd Mat Slots Evolved . | . . Power . | . . Propulsion . | . . Utility . | . . Weapon . | . . Parts Attached 13 | 1 12 Power 1 | . 1 Engine 1 | . 1 Core . | . . Reactor . | . . Propulsion 3 | . 3 Treads . | . . Leg 2 | . 2 Wheel 1 | . 1 Hover . | . . Flight . | . . Utility 4 | 1 3 Device 1 | 1 . Storage 2 | . 2 Processor . | . . Hackware . | . . Protection 1 | . 1 Artifact . | . . Weapon 5 | . 5 Energy Gun . | . . Energy Cannon . | . . Ballistic Gun 4 | . 4 Ballistic Cannon . | . . Launcher . | . . Special Weapon . | . . Impact Weapon 1 | . 1 Slashing Weapon . | . . Piercing Weapon . | . . Special Melee Weapon . | . . Unidentified Prototypes . | . . Parts Lost 8 | . 8 Power 2 | . 2 Propulsion 3 | . 3 Utility 1 | . 1 Weapon 2 | . 2 Highest Loss Streak 4 | . 4 To Critical Strikes . | . . Average Backups 11 | 6 12 Power 1 | 1 1 Propulsion 6 | 4 6 Utility 2 | . 2 Weapon 2 | 1 2 Tool/Special . | . . Unused Backups 11 | . 11 Power 1 | . 1 Propulsion 3 | . 3 Utility 4 | . 4 Weapon 3 | . 3 Tool/Special . | . . Average Slot Usage (%) 97 | . 97 Engine 13 | . 13 Leg 27 | . 27 Device 10 | . 10 Storage 14 | . 14 Protection 1 | . 1 Ballistic Gun 27 | . 27 Peak Build Rating 8 | 7 8 Average Rating 7 | 6 7 On Entrance 6 | 6 7 Naked Turns . | . . Heaviest Build 29 | 11 29 Greatest Support 20 | 20 20 Greatest Overweight (x) 1 | . 1 Average Overweight (x) . | . . Largest Inventory Capacity 15 | 8 15 Average Capacity 12 | 8 12 Most Carried 15 | 7 15 Average Carried 11 | 6 12 Final Capacity 15 | 8 15 Final Carried 11 | 6 11 Class Distribution -------------------- 100% | Mutant Dominant Class ---------------- Mutant | -10/Materials Resources | -11 -10 ----------- Run | Yrd Mat Matter Collected 385 | 220 165 Remotely . | . . Salvage Created 263 | 10 253 Parts 16 | 5 11 Haulers Intercepted . | . . Recyclers Shooed 1 | 1 . Parts Field Recycled . | . . Retrieved Matter . | . . Parts Self-Destructed . | . . Prevented . | . . Kills | -11 -10 ------- Run | Yrd Mat Combat Hostiles Destroyed 6 | . 6 Guns 6 | . 6 Classes Destroyed 4 | 1 3 Tunneler 1 | 1 . Watcher 1 | . 1 Swarmer 1 | . 1 Grunt 5 | . 5 Best Kill Streak 2 | 1 2 Combat Bots Only 2 | . 2 Max Kills in Single Turn 1 | 1 1 Gunslinging . | . . Exploded . | . . Melee . | . . Uniques/NPCs Destroyed . | . . Combat | -11 -10 -------- Run | Yrd Mat Hostile Shots Fired 91 | . 91 Missed 20 | . 20 Hits 71 | . 71 Projectile 71 | . 71 Critical Strikes 1 | . 1 Damage Taken 1054 | . 1054 Core 261 | . 261 Absorbed by Shields . | . . Regen/Repaired (Parts) 19 | . 19 Core Remaining (%) 100 | 100 . Volleys Fired 56 | 5 51 Largest 2 | 2 2 Hottest 40 | 40 40 Shots Fired 112 | 10 102 Gun 112 | 10 102 Cannon . | . . Launcher . | . . Special . | . . Kinetic 112 | 10 102 Thermal . | . . Explosive . | . . Electromagnetic . | . . Robot Hit Streak 12 | 2 12 Robot Miss Streak 5 | 2 5 Penetration Max . | . . Secondary Targets 1 | . 1 Max Gunslinging Chain 1 | . 1 Shots Hit Robots 59 | 4 55 Core Hits 25 | 2 23 Critical Kills . | . . Critical Parts Destroyed 1 | . 1 Critical Strikes 1 | . 1 Destroy 1 | . 1 Melee Attacks 1 | . 1 Impact 1 | . 1 Slashing . | . . Piercing . | . . Sneak Attacks . | . . Combat Hostiles . | . . Follow-up Attacks . | . . Damage Inflicted 639 | 30 609 Guns 620 | 30 590 Cannons . | . . Explosions . | . . Melee . | . . Ramming 19 | . 19 Kinetic 620 | 30 590 Thermal . | . . Explosive . | . . Electromagnetic . | . . Impact . | . . Slashing . | . . Piercing . | . . Highest Corruption . | . . Average Corruption . | . . Corruption Purged . | . . Corruption Blocked . | . . Overload Shots . | . . Overflow Damage . | . . Projectiles . | . . Explosions . | . . Melee . | . . Knockbacks . | . . Impact . | . . Kinetic . | . . Secondary . | . . Self-Inflicted Damage . | . . Shots . | . . Rammed . | . . Targets Rammed 3 | . 3 Kicked 3 | . 3 Crushed . | . . Highest Temperature 80 | . 80 Average Temperature 34 | . 34 Received Heat Transfer 474 | . 474 Siege Activations . | . . Martial Activations . | . . Shielding Activations . | . . Robots Disrupted . | . . Combat Hostiles . | . . Robots Corrupted . | . . Combat Hostiles . | . . Parts Fried . | . . Impact Corruptions . | . . Robots Melted . | . . Combat Hostiles . | . . Parts Melted 1 | . 1 Heat Transferred . | . . Parts Sabotaged . | . . Parts Stolen . | . . Parts Stripped . | . . Power Chain Reactions . | . . Alert | -11 -10 ------- Run | Yrd Mat Maximum Alert Level . | . . Low Security (%) 100 | 100 100 Level 1 . | . . Level 2 . | . . Level 3 . | . . Level 4 . | . . Level 5 . | . . High Security . | . . Max Security . | . . Peak Influence 53 | 5 53 Initial . | . . Average 5 | 2 5 Influence Increases 216 | 5 211 Destroy 0b10 Robot/C 120 | . 120 Destroy 0b10 Robot/NC 10 | 5 5 Destroy Leader 12 | . 12 Successful Hack 28 | . 28 Destroy Structure 1 | . 1 Lose Combat Pursuer 45 | . 45 Influence Decreases 183 | 5 178 Time Decay 133 | 5 128 Lost Part 50 | . 50 Squads Dispatched . | . . Investigation . | . . Extermination . | . . Reinforcement . | . . Assault . | . . Garrison . | . . Intercept . | . . Searches Triggered . | . . Construction Impeded . | . . Haulers Reinforced . | . . Active Scanning Responses . | . . Cargo Convoy Interrupts . | . . Stealth | -11 -10 --------- Run | Yrd Mat Distress Signals 1 | . 1 Communications Jammed . | . . Distress Signals . | . . Times Spotted 16 | . 16 Peak Tracking Total 6 | . 6 Tactical Retreats 1 | . 1 Traps | -11 -10 ------- Run | Yrd Mat Traps Triggered 2 | . 2 Indirectly . | . . Trap Hack Attempts . | . . Triggered . | . . Disarmed . | . . Reprogrammed . | . . Reused . | . . Traps Extracted . | . . Installed . | . . Triggered . | . . Machines | -11 -10 ---------- Run | Yrd Mat Machines Disabled . | . . Max in Single Turn . | . . Machines Repaired . | . . Machines Dismantled . | . . Machines Sabotaged . | . . Overloaded Fab Kills . | . . Hacking | -11 -10 --------- Run | Yrd Mat Machines Accessed 9 | . 9 Terminals 7 | . 7 Fabricators . | . . Repair Stations 1 | . 1 Recycling Units 1 | . 1 Scanalyzers . | . . Garrison Access . | . . Total Hacks 26 | . 26 Successful 11 | . 11 Failed 15 | . 15 Catastrophic . | . . Database Lockouts . | . . Manual 15 | . 15 Terminals 23 | . 23 Fabricators . | . . Repair Stations 2 | . 2 Recycling Units 1 | . 1 Scanalyzers . | . . Garrison Access . | . . Terminal Hacks 4 | . 4 Locate Traps 2 | . 2 Dispatch Records 1 | . 1 Hauler Manifests 1 | . 1 Fabricator Hacks . | . . Repair Station Hacks 2 | . 2 Scan Component 1 | . 1 Repair 1 | . 1 Recycling Unit Hacks 1 | . 1 Retrieve Components 1 | . 1 Scanalyzer . | . . Garrison Access Hacks . | . . Unauthorized Hacks 4 | . 4 Terminals 4 | . 4 Botnet 3 | . 3 Operators 1 | . 1 Fabricators . | . . Repair Stations . | . . Recycling Units . | . . Scanalyzers . | . . Garrison Access . | . . Data Cores Recovered . | . . Used . | . . Hacking Detections 7 | . 7 Full Trace Events . | . . Feedback Events . | . . Feedback Blocked . | . . Robot Schematics Acquired . | . . Robots Built . | . . Authchips . | . . Time . | . . Total Robot Build Rating . | . . Part Schematics Acquired . | . . Parts Built . | . . Authchips . | . . Time . | . . Total Part Build Rating . | . . Parts Repaired 1 | . 1 Time 19 | . 19 Parts Recycled . | . . Recycled Matter . | . . Retrieved Matter . | . . Retrieved Components . | . . Parts Scanalyzed . | . . Part Schematics Acquired . | . . Parts Damaged . | . . Bothacking | -11 -10 ------------ Run | Yrd Mat Used RIF Installer . | . . Robots Hacked . | . . Non-combat . | . . Combat . | . . Robot Hacks Applied . | . . Relay Couplers Released . | . . Fabnet Peak Effective % . | . . Robots Rewired . | . . Allies Hacked . | . . Hacks Repelled . | . . Allies | -11 -10 -------- Run | Yrd Mat Total Allies . | . . Largest Group . | . . Highest-Rated Group . | . . Highest-Rated Ally . | . . Total Orders . | . . Ally Attacks . | . . Total Damage . | . . Kills . | . . Allies Corrupted . | . . Allies Melted . | . . Intel | -11 -10 ------- Run | Yrd Mat Active Infowar (turns) 772 | 10 762 Seismic 772 | 10 762 Robot Analysis Total . | . . Derelict Logs Recovered . | . . Drone Launches . | . . Drone Recoveries . | . . Exploration | -11 -10 ------------- Run | Yrd Mat Turns Passed 1051 | 32 1019 Spaces Moved 509 | 15 494 Core . | . . Treads . | . . Legs 509 | 15 494 Wheels . | . . Hover . | . . Flight . | . . Fastest Speed 120 | 120 120 Average Speed 150 | 120 151 Slowest Speed 190 | 120 190 Overloaded Moves . | . . Propulsion Burnouts . | . . Robots Hopped . | . . Potential Cave-ins . | . . Cave-ins Triggered . | . . Exploration Rate (%) 41 | 2 81 Regions Visited 1 Branch Regions . Pre-discovered Areas . | . . Known Exits Taken . | . . Unknown Exits Taken 1 | 1 . Scrap Searched . | . . Spaces Dug 1 | . 1 Terrain Destroyed 1 | . 1 Melee 1 | . 1 Projectile . | . . AOE . | . . Terrain Rammed . | . . Walls Destroyed . | . . Machines Disabled . | . . Actions | -11 -10 --------- Run | Yrd Mat Total 697 | 21 676 Wait 97 | . 97 Move 508 | 14 494 Hop . | . . Pick Up 13 | 1 12 Fast Attach 1 | . 1 Attach 6 | 1 5 Detach . | . . Swap 7 | . 7 Drop 5 | . 5 Fire 56 | 5 51 Melee 1 | . 1 Ram . | . . Kick 3 | . 3 Crush . | . . Escape Stasis . | . . Rewire . | . . Trap . | . . Miscellaneous . | . . Route ------- -11/Scrapyard -10/Materials (discovered 3 exits: [*Mat x2] / [*Min]) History --------- Turn | Location | Event 1 | -11/Scrapyard | Discovered new exit (range 3) 33 | -11/Scrapyard | Entered Materials 188 | -10/Materials | Discovered new exit (range 16) 331 | -10/Materials | Build established: Mutant 377 | -10/Materials | Discovered new exit (range 16) 690 | -10/Materials | Repaired Lgt. Nuclear Core 808 | -10/Materials | Discovered new exit (range 13) 1015 | -10/Materials | Core integrity fell below 50% 1041 | -10/Materials | Core integrity fell below 20% 1052 | -10/Materials | Destroyed by G-47 Trooper with Particle Gun Last Messages --------------- 00970_ U-05 Engineer lays Concrete. 00970_ U-05 Engineer builds a Wall. 00971_ U-05 Engineer lays Concrete. 00974_ U-05 Engineer builds a Wall. 00999_ W-16 Scout sends out distress signal. 01015_ Aluminum Leg destroyed. 01016_ S-10 Pest destroyed. 01017_ Switching to secondary target: G-47 Trooper. 01024_ Lgt. Assault Rifle destroyed. 01026_ S-10 Pest destroyed. 01028_ Critical hit (Burn: +37). 01040_ R-06 Scavenger collects Lgt. Assault Rifle. 01045_ Ion Engine melted. 01045_ G-34 Mercenary destroyed. 01046_ Ion Engine destroyed. 01047_ R-06 Scavenger collects Sml. Laser. 01050_ Com. Wheel destroyed. 01050_ R-06 Scavenger collects Lgt. Ion Engine. Map ----- +----------------------------------------------------+ | ?# # T #????????????# #? = # #??? | | # #! #????????????# # # #??? | | / #^ # !#????????????# # """ #%#??? | | + + [[ #????????????# + """ # #??? | | # # [! #????????????# # """ # #??? | | ######## ########????????????# # # #??? | | ??????# """#???????????????## ######## #??? | | ??????# "#????????######## #???### ###? | | ??????# !"#????????# #???# #? | | ??????# < ""#????????# " #???# #? | | #?##### |"#????????# ##### #? | | ### # # = "#????????# #### #? | | # # !% """#????????# #??########### #? | | # ! ####????????# #????????????## ##? | | # ############# #?????????????# #?? | | + k #?????????????# #?? | | # #?????????????# #?? | | # #?????????????# #?? | | # ##### ######## #????????????? ?? | | # #?# # # #????????????? ?? | | ### ###?# # #r #????????????? ? | | ??#######???# # + #????????????? ? | | ????????????# # # #????????????? # | | ????????????# # # ######????????? # | | ????????????# ######?# +????????? ?? | | ???????????? #########@#######??????????????? | | ????????????# / t%% #??????????????? | | ????????????# ### r %% #??????????????? | | ????????????# #?# rg #??????????????? | | ????????????# #?# " """"" #??????????????? | | ????????????# #?# """"""""" #??????????????? | | ????????????# #?# """ """ #??????????????? | | ????????????? #?###############??????????????? | | ????????????? ???????????????????????????????? | | ???????????????????????????????????????????????? | | ???????????????????????????????????????????????? | | ???????????????????????????????????????????????? | | ???????????????????????????????????????????????? | | ???????????????????????????????????????????????? | | ???????????????????????????????????????????????? | | ???????????????????????????????????????????????? | | ???????????????????????????????????????????????? | | ???????????????????????????????????????????????? | | ???????????????????????????????????????????????? | | ???????????????????????????????????????????????? | | ???????????????????????????????????????????????? | | ???????????????????????????????????????????????? | | | | | | | +----------------------------------------------------+ Best States ------------- Heat Dissipation 25 Energy Generation 10 Energy Capacity 250 Matter Stores 300 Matter Capacity 300 Sight Range 16 Terrain Scan Density 10 Armor Coverage 150 Evasion (%) 55 Item Schematics ----------------- None Robot Schematics ------------------ None Fabricated ------------ Nothing Repaired ---------- Lgt. Nuclear Core | 62% | -10/Materials Alien Tech Used ----------------- None Achievements -------------- None Challenges ------------ None Game ------ Seed CloakingExplosiveRegenerator Manual? 0 Play Time 00:12:48 Cumulative 52.7 hours Start 2025.07.14 @ 12:36:00 End 2025.07.14 @ 12:49:01 Sessions 1 Manual Loads 0 Difficulty Rogue Special Mode None Game No. 36 Rogue 36 Adventurer 0 Explorer 0 Win Type - Total 1 Types 1/0/0/0/0/0/0/0/0/0 Lore% 24 Gallery% 29 Achievement% 28 Wizard Run 0 Options --------- Layout 2 ASCII 0 Keyboard 0 Movement Numpad Keybinds 0 Fullscreen 1 Font 32/SmallcapsGlow Map View 50x44 Zoom Use 0% Tactical HUD 1 Map Filters NONE Filters NONE Steam 1 RUN: 88fec7b4-2220-465c-898d-6d8981cbffaa